bitfinex/quotes_ETHUSD_20220310
["timestamp","ask_amount","ask_price","bid_price","bid_amount"]
[1646917532044,0.95949,2607.9,2607.7,0.0879924]
[1646917532446,0.95949,2607.9,2607.6,0.96328579]
[1646917533247,2.39148739,2607.9,2607.6,0.95949]
[1646917533448,0.95949,2607.9,2607.6,0.95949]
[1646917533653,0.95949,2607.9,2607.6,0.96317192]
[1646917534249,0.95949,2607.9,2607.6,0.00368192]
[1646917534250,2.39148739,2607.9,2607.6,0.00368192]
[1646917534449,1.43199739,2607.8,2607.6,0.00368192]
[1646917534648,0.95973,2607.7,2607.5,1.91917]
[1646917535097,0.95973,2607.7,2607.6,0.00368192]
[1646917535698,0.95973,2607.7,2607.5,1.91917]
[1646917536099,0.95973,2607.7,2607.5,1.92075795]
[1646917536505,0.95973,2607.7,2607.5,0.00158795]
[1646917536506,3.5,2607.6,2607.5,0.00158795]
[1646917536704,45.5,2607.5,2607.2,0.25]
[1646917536906,1.28149436,2607.4,2606.9,5.169]
[1646917537909,1.28149436,2607.4,2607.0,0.08842781]
[1646917538110,0.96003,2607.4,2607.0,0.08842781]
[1646917539550,0.96003,2607.4,2607.1,0.0905728]
[1646917539748,0.96003,2607.4,2607.1,1.0503628]
[1646917540748,0.96003,2607.4,2607.1,1.05206091]
[1646917541559,0.96003,2607.4,2607.2,0.08097094]
[1646917541750,1.91925,2607.8,2607.2,2.00021094]
[1646917541751,0.95959,2607.6,2607.2,2.00021094]
[1646917541950,1.91925,2607.8,2607.4,1.03429918]
[1646917542152,1.91925,2607.8,2607.5,0.08536952]
[1646917542593,1.91934,2607.7,2607.5,0.08536952]
[1646917542794,1.91934,2607.7,2607.4,0.95967]
[1646917542994,1.91934,2607.7,2607.5,0.95967]
[1646917543194,1.91934,2607.7,2607.5,0.96346197]
[1646917544200,1.91934,2607.7,2607.5,0.95967]
[1646917544397,1.91934,2607.7,2607.5,0.00379193]
[1646917545196,5.41934,2607.7,2607.5,0.00379193]
[1646917545396,2.91934,2607.7,2607.4,0.95967]
[1646917545599,4.35163982,2607.7,2607.5,0.00366395]
[1646917546005,7.85163982,2607.7,2607.5,0.00366395]
[1646917546451,4.35163982,2607.7,2607.5,0.00366395]
[1646917546654,4.35163982,2607.7,2607.4,0.95967]
[1646917547251,4.35163982,2607.7,2607.2,0.0856844]
[1646917547451,4.35163982,2607.7,2606.8,1.91972]
[1646917547452,1.43229982,2607.6,2606.8,1.91972]
[1646917547655,4.93229982,2607.5,2606.8,2.00982816]
[1646917547852,0.95998,2607.4,2606.8,2.00982816]
[1646917548753,0.95998,2607.4,2606.8,3.06354577]
[1646917548952,0.95998,2607.4,2606.8,1.14382577]
[1646917549356,0.95998,2607.4,2607.0,0.00378829]
[1646917550298,0.95998,2607.4,2606.8,1.14382577]
[1646917550500,2.91995,2607.5,2606.4,0.01515702]
[1646917550501,22.94739,2606.5,2606.4,0.01515702]
[1646917550700,15.19839,2606.5,2606.4,0.01515702]
[1646917550896,15.19839,2606.5,2606.1,1.1740231]
[1646917551098,8.40924,2606.5,2606.2,1.59656714]
[1646917551297,8.40924,2606.5,2606.3,1.59656714]
[1646917551498,8.40924,2606.5,2606.4,1.5965619]
[1646917551701,3.5,2606.5,2606.4,1.59655324]
[1646917551904,3.5,2606.5,2606.0,0.385]
[1646917552097,3.5,2606.5,2606.1,1.59655663]
[1646917552098,1.91974,2606.4,2606.1,1.59655663]
[1646917552297,1.91974,2606.4,2606.2,1.59655663]
[1646917552498,1.91974,2606.4,2606.3,1.59655663]
[1646917552698,1.91974,2606.4,2606.0,1.98155663]
[1646917552899,1.91974,2606.4,2606.1,1.59655663]
[1646917553099,1.91974,2606.4,2606.1,2.55645063]
[1646917553299,1.91974,2606.4,2606.2,1.59655663]
[1646917554143,1.91974,2606.4,2606.2,1.60034108]
[1646917554948,1.91974,2606.4,2606.2,1.59655663]
[1646917555348,1.91974,2606.4,2606.2,1.60034108]
[1646917555947,1.91974,2606.4,2606.2,2.77976903]
[1646917556148,1.91974,2606.4,2606.3,1.59655663]
[1646917556752,1.91974,2606.4,2606.1,1.644894]
[1646917556949,1.91974,2606.4,2606.1,2.85191969]
[1646917557351,1.91974,2606.4,2605.9,8.0485654]
[1646917557599,1.91974,2606.4,2606.0,0.95982]
[1646917557803,0.21683821,2606.4,2606.0,0.95982]
[1646917558000,0.21683821,2606.4,2606.0,1.00915743]
[1646917558400,0.21683821,2606.4,2606.2,1.5341158]
[1646917558900,0.21683821,2606.4,2606.1,0.00366717]
[1646917559301,0.21683821,2606.4,2606.1,0.96356117]
[1646917559704,0.21683821,2606.4,2606.2,0.3]
[1646917559902,0.21683821,2606.4,2606.3,1.20100328]
[1646917560105,0.21683821,2606.4,2606.1,1.07731023]
[1646917560501,0.21683821,2606.4,2606.2,1.1758615]
[1646917561246,0.21683821,2606.4,2606.2,0.3]
[1646917561643,0.21683821,2606.4,2605.9,8.6417054]
[1646917562048,0.21683821,2606.4,2606.1,1.1561538]
[1646917562352,0.21683821,2606.4,2605.9,8.6417054]
[1646917562547,0.21683821,2606.4,2606.0,1.08476357]
[1646917562748,0.21683821,2606.4,2605.9,3.96708897]
[1646917563153,0.98178299,2606.3,2605.9,3.96708897]
[1646917563351,0.98178299,2606.3,2605.9,1.3]
[1646917563551,0.98178299,2606.3,2605.9,1.29355224]
[1646917563753,0.078632,2606.2,2605.8,1.44540146]
[1646917563951,0.078632,2606.2,2605.9,1.9197054]
[1646917564152,0.078632,2606.2,2605.6,0.71106278]
[1646917564350,1.998462,2606.2,2605.6,0.553]
[1646917564750,1.998462,2606.2,2605.6,2.4728187]
[1646917565003,1.998462,2606.2,2605.7,1.08308016]
[1646917565190,1.998462,2606.2,2605.7,1.63608016]
[1646917565391,1.998462,2606.2,2605.7,1.93608016]
[1646917565590,1.998462,2606.2,2605.7,0.853]
[1646917565790,1.03796211,2606.1,2605.7,2.772822]
[1646917565990,0.07387988,2606.0,2605.7,2.772822]
[1646917566194,0.07387988,2606.0,2605.8,0.00167308]
[1646917566594,0.07387988,2606.0,2605.8,2.03285299]
[1646917566997,1.03380988,2606.0,2605.8,2.33117991]
[1646917567295,1.03380988,2606.0,2605.8,2.88796081]
[1646917567696,1.03380988,2606.0,2605.8,9.05696081]
[1646917567897,0.07387988,2606.0,2605.8,8.05696081]
[1646917568098,0.07387988,2606.0,2605.8,9.05696081]
[1646917568298,1.20974,2606.1,2605.8,9.05317991]
[1646917568499,1.20974,2606.1,2605.8,9.05696081]
[1646917569547,1.20974,2606.1,2605.8,9.05317991]
[1646917569748,1.20974,2606.1,2605.8,9.05696077]
[1646917570156,0.07904218,2606.0,2605.8,9.05696077]
[1646917570449,0.07904218,2606.0,2605.8,9.76802355]
[1646917570651,0.07904218,2606.0,2605.8,9.76424269]
[1646917570849,0.07904218,2606.0,2605.8,9.0568332]
[1646917571056,0.95974,2606.1,2605.8,8.9681732]
[1646917571249,0.95974,2606.1,2605.8,9.67923598]
[1646917571453,0.95974,2606.1,2605.9,2.8792943]
[1646917571650,0.94398,2606.1,2605.9,3.4056843]
[1646917571848,0.94398,2606.1,2605.9,4.4056843]
[1646917572051,0.94398,2606.1,2605.9,3.4056843]
[1646917572249,0.94398,2606.1,2605.9,4.4056843]
[1646917572498,0.94398,2606.1,2605.9,3.4056843]
[1646917572699,0.94398,2606.1,2605.9,4.4056843]
[1646917572994,0.94398,2606.1,2605.9,3.4056843]
[1646917573194,0.94398,2606.1,2605.9,4.40933753]
[1646917574194,0.94398,2606.1,2605.9,4.4056843]
[1646917574398,0.94398,2606.1,2605.9,3.4459343]
[1646917574597,0.94398,2606.1,2605.9,2.44942195]
[1646917574798,0.03618776,2606.0,2605.9,2.44942195]
[1646917575397,0.03618776,2606.0,2605.9,2.4459343]
[1646917576842,0.03618776,2606.0,2605.9,4.04241945]
[1646917577241,0.03618776,2606.0,2605.9,4.48941945]
[1646917577852,1.26847483,2606.2,2605.9,9.65841945]
[1646917578047,1.26847483,2606.2,2606.0,1.59648515]
[1646917578248,1.26847483,2606.2,2606.0,1.89648515]
[1646917578449,1.26847483,2606.2,2606.1,1.59648515]
[1646917579452,1.26847483,2606.2,2606.1,8.09648515]
[1646917579654,0.96324741,2606.4,2606.1,8.09648515]
[1646917579853,0.96324741,2606.4,2606.2,1.59648515]
[1646917580096,0.96324741,2606.4,2606.3,0.553]
[1646917580294,0.95974,2606.4,2606.3,2.14948515]
[1646917580893,0.95974,2606.4,2606.3,1.59648515]
[1646917583947,0.385,2606.3,2605.5,5.17325886]
[1646917584144,1.15154,2606.4,2605.9,0.00350485]
[1646917584145,1.27738748,2606.0,2605.9,0.00350485]
[1646917584944,0.9602,2606.1,2605.9,0.00350485]
[1646917585145,0.9602,2606.1,2605.6,1.59660674]
[1646917585847,0.9602,2606.1,2605.6,1.89660674]
[1646917586043,1.53176575,2605.9,2605.7,1.59660674]
[1646917586244,2.49197575,2605.9,2605.7,1.59660674]
[1646917586445,2.10697575,2605.9,2605.8,1.59660674]
[1646917586644,2.10697575,2605.9,2605.3,1.59660674]
[1646917587046,0.385,2605.8,2605.4,1.59660674]
[1646917587245,0.385,2605.7,2605.5,1.59660674]
[1646917587501,1.92062,2605.8,2605.6,1.59660674]
[1646917587695,1.92062,2605.8,2605.7,1.59660674]
[1646917587896,1.92062,2605.8,2605.1,1.59660674]
[1646917588099,0.5768,2605.7,2605.1,1.59660674]
[1646917588298,0.385,2605.5,2605.2,1.59660674]
[1646917588500,1.92091,2605.5,2605.3,1.59660674]
[1646917588696,1.92091,2605.5,2605.4,1.59660674]
[1646917588897,1.92091,2605.5,2605.3,0.00369524]
[1646917589199,0.5768,2605.4,2605.3,0.00369524]
[1646917589403,35.385,2605.3,2604.3,5.88006278]
[1646917589600,1.9213,2604.6,2604.3,5.88006278]
[1646917589798,1.9213,2604.6,2604.2,2.83477905]
[1646917589997,1.9213,2604.6,2604.2,0.71106278]
[1646917590198,1.06582728,2604.4,2604.1,5.88006278]
[1646917590399,1.06582728,2604.4,2604.1,5.169]
[1646917590602,2.98712728,2604.4,2604.1,5.169]
[1646917590799,2.98712728,2604.4,2604.0,1.67170758]
[1646917591002,0.96065,2604.3,2604.1,5.169]
[1646917591240,2.98712728,2604.4,2604.1,5.469]
[1646917592447,6.87212728,2604.4,2604.0,0.3]
[1646917592646,6.87212728,2604.4,2603.9,0.3]
[1646917592647,0.06039861,2604.2,2603.9,0.3]
[1646917592845,0.06039861,2604.2,2603.6,0.71106278]
[1646917593048,0.06039861,2604.2,2603.7,0.3]
[1646917593248,0.06039861,2604.2,2603.6,0.3]
[1646917593447,0.87651586,2603.9,2603.6,0.3]
[1646917593652,0.06538403,2603.8,2603.5,0.3195097]
[1646917593948,0.06538403,2603.8,2603.5,0.0195097]
[1646917595000,0.06538403,2603.8,2603.5,0.02328053]
[1646917595993,0.06538403,2603.8,2603.5,0.0195097]
[1646917596196,0.06538403,2603.8,2603.5,0.98405333]
[1646917596393,3.06406612,2604.1,2603.5,0.98405333]
[1646917596597,0.06757336,2604.0,2603.5,0.98405333]
[1646917597298,0.06757336,2604.0,2603.6,0.00377077]
[1646917597898,0.05153373,2603.9,2603.7,0.9607304]
[1646917598498,0.05153373,2603.9,2603.7,0.96438802]
[1646917598938,1.01228373,2603.9,2603.7,0.96438802]
[1646917599537,1.01228373,2603.9,2603.5,0.0195097]
[1646917599738,1.01228373,2603.9,2603.7,0.00365762]
[1646917600139,0.02477734,2603.8,2603.7,0.00365762]
[1646917600740,0.02477734,2603.8,2603.6,0.31305055]
[1646917600943,0.02477734,2603.8,2603.7,0.00365762]
[1646917601445,0.07418681,2603.8,2603.7,0.00365762]
[1646917601840,0.07418681,2603.8,2603.6,0.01305055]
[1646917602240,1.21435729,2603.7,2603.6,0.01652474]
[1646917603114,1.21435729,2603.7,2603.5,0.0195097]
[1646917603315,2.17543729,2603.7,2603.5,0.02298395]
[1646917603715,0.96108,2603.6,2603.5,0.02298395]
[1646917604317,0.9611,2603.1,2602.9,0.00130454]
[1646917604519,2.8833,2603.4,2603.0,0.01389928]
[1646917604718,0.87636989,2603.1,2603.0,0.01389928]
[1646917605517,0.87636989,2603.1,2602.7,6.469]
[1646917605720,0.96112,2603.0,2602.9,0.0035014]
[1646917606748,0.96112,2603.0,2602.5,0.9611373]
[1646917606944,0.96115,2602.7,2602.5,0.9611373]
[1646917607343,1.9223,2602.8,2602.7,1.70290977]
[1646917607544,4.2599,2603.5,2602.7,5.20290977]
[1646917607545,3.8749,2603.5,2602.7,5.20290977]
[1646917607745,7.3749,2603.5,2602.8,1.9217681]
[1646917607944,0.9609,2603.3,2602.8,1.9217681]
[1646917608143,0.9609,2603.3,2603.0,0.00350137]
[1646917608346,2.07059601,2603.3,2602.9,0.25350137]
[1646917609146,2.07059601,2603.3,2603.0,1.5980452]
[1646917609449,0.9609,2603.3,2603.0,2.5589762]
[1646917609645,0.9609,2603.3,2603.1,1.5980452]
[1646917610090,0.9609,2603.3,2603.1,1.8980452]
[1646917610290,0.9609,2603.3,2603.2,1.5980452]
[1646917610694,0.9609,2603.3,2603.1,0.3]
[1646917611091,1.92216,2603.1,2602.9,0.853]
[1646917611291,1.92216,2603.1,2603.0,1.59803349]
[1646917611491,1.92216,2603.1,2602.9,0.3]
[1646917611890,1.92216,2603.1,2602.7,1.70290977]
[1646917611891,1.92216,2603.1,2602.7,2.00290977]
[1646917612095,1.92216,2603.1,2602.8,1.59810445]
[1646917612295,1.92216,2603.1,2602.8,0.9609965]
[1646917612493,0.96104,2602.9,2602.7,0.56597996]
[1646917612698,0.05727434,2602.8,2602.7,0.56597996]
[1646917613497,5.58260852,2602.8,2602.7,0.56597996]
[1646917613742,5.96760852,2602.8,2602.7,0.56597996]
[1646917613943,6.15960852,2602.8,2602.7,0.56597996]
[1646917614142,2.65960852,2602.8,2602.7,0.56597996]
[1646917614445,5.96760852,2602.8,2602.7,0.56597996]
[1646917615245,0.385,2602.6,2602.0,0.00130454]
[1646917615446,0.385,2602.6,2601.8,0.00130454]
[1646917615447,0.04799825,2601.9,2601.8,0.00130454]
[1646917615744,0.04799825,2601.9,2601.5,0.19330454]
[1646917615943,0.04799825,2601.9,2601.2,5.169]
[1646917616143,0.385,2602.2,2601.2,5.169]
[1646917616348,0.385,2602.0,2601.1,0.00130454]
[1646917616546,1.23420889,2601.8,2601.2,1.13363609]
[1646917616845,1.23420889,2601.8,2601.4,0.00377633]
[1646917616846,0.96167,2601.6,2601.4,0.00377633]
[1646917617694,0.04870061,2601.7,2601.2,1.43363609]
[1646917617895,0.04870061,2601.7,2601.4,0.00350012]
[1646917618096,6.2614,2602.4,2601.4,0.00350012]
[1646917618097,0.192,2602.2,2601.4,0.00350012]
[1646917618397,0.05155025,2602.3,2602.2,1.70544966]
[1646917618995,3.5,2602.4,2602.2,1.70544966]
[1646917619396,1.92291,2602.3,2602.2,1.70544966]
[1646917620401,0.05322735,2602.5,2602.2,2.25844966]
[1646917620602,1.2395,2602.9,2602.2,2.25844966]
[1646917620603,0.192,2602.9,2602.2,2.25844966]
[1646917620802,0.192,2602.9,2602.2,2.55844966]
[1646917621001,0.04454664,2603.0,2602.2,2.55844966]
[1646917621242,0.04454664,2603.0,2602.2,3.55844966]
[1646917621441,0.04454664,2603.0,2602.5,1.87756627]
[1646917621645,0.04454664,2603.0,2602.6,0.553]
[1646917622042,0.96114,2602.7,2602.6,0.553]
[1646917622243,1.92227,2602.9,2602.6,0.553]
[1646917622449,0.28733125,2603.1,2602.6,0.553]
[1646917622450,0.09533125,2603.1,2602.6,0.553]
[1646917623247,0.9611,2602.8,2602.6,0.553]
[1646917623849,0.9611,2602.8,2602.6,0.85650293]
[1646917624851,0.9611,2602.8,2602.6,0.853]
[1646917625104,1.95175651,2603.0,2602.6,0.85650242]
[1646917625304,0.02945651,2603.0,2602.6,0.85650242]
[1646917626104,0.96106,2602.9,2602.6,0.853]
[1646917626303,0.96106,2602.9,2602.7,0.00350237]
[1646917626506,0.02945651,2603.0,2602.8,0.553]
[1646917626706,0.02945651,2603.0,2602.9,0.3]
[1646917626904,0.02945651,2603.0,2602.9,0.853]
[1646917627505,0.02945651,2603.0,2602.9,1.79762614]
[1646917628106,0.02945651,2603.0,2602.9,3.46632226]
[1646917628306,0.02945651,2603.0,2602.9,4.39579831]
[1646917629340,0.02945651,2603.0,2602.9,3.45117217]
[1646917629640,0.02945651,2603.0,2602.9,1.853]
[1646917629840,2.88164113,2603.4,2602.9,0.853]
[1646917630041,0.96092,2603.3,2602.9,0.853]
[1646917631141,0.96092,2603.3,2602.9,0.85650241]
[1646917631342,0.94656768,2603.0,2602.9,0.00350241]
[1646917632044,0.94656768,2603.0,2602.7,1.5983151]
[1646917632502,0.96118,2602.9,2602.8,1.60181744]
[1646917632693,0.96118,2602.9,2602.8,0.00350234]
[1646917632896,0.96118,2602.9,2602.8,0.30350234]
[1646917633092,0.96118,2602.9,2602.8,0.00350234]
[1646917633294,0.96118,2602.9,2602.7,1.5983151]
[1646917633495,0.96118,2602.9,2602.7,0.0035024]
[1646917634298,0.24215629,2602.8,2602.7,0.0035024]
[1646917634496,0.24215629,2602.8,2602.4,1.59844401]
[1646917634695,1.22911881,2602.6,2602.5,1.59844401]
[1646917635098,1.22911881,2602.6,2602.4,1.59844401]
[1646917635298,0.24215629,2602.8,2602.3,0.01401179]
[1646917635299,0.24215629,2602.8,2602.5,1.59844401]
[1646917635501,0.05015629,2602.8,2602.6,1.59844401]
[1646917635699,0.05015629,2602.8,2602.7,1.59844401]
[1646917636098,0.385,2603.2,2602.7,0.96113]
[1646917636099,0.05256865,2603.2,2602.7,0.96113]
[1646917636342,0.05256865,2603.2,2602.8,1.59844401]
[1646917636343,0.192,2603.2,2602.8,1.59844401]
[1646917636642,0.04950843,2603.2,2602.8,1.59844401]
[1646917637243,0.04950843,2603.2,2602.9,0.00350232]
[1646917638053,0.04950843,2603.2,2602.7,1.59844401]
[1646917638449,0.04950843,2603.2,2602.9,0.00350236]
[1646917638650,1.01470247,2603.3,2603.2,0.05242249]
[1646917639849,0.98323726,2603.3,2603.2,0.05242249]
[1646917640115,1.36823726,2603.3,2603.2,0.05242249]
[1646917640313,0.385,2603.1,2602.9,0.00350252]
[1646917640517,5.08860742,2603.0,2602.4,0.00130454]
[1646917640717,5.08860742,2603.0,2602.2,1.70544966]
[1646917640718,0.04517523,2602.9,2602.3,1.59846994]
[1646917640914,0.04517523,2602.9,2602.7,0.01401083]
[1646917641112,1.59077334,2602.8,2602.7,0.01401083]
[1646917641514,1.20577334,2602.8,2602.7,0.01401083]
[1646917641715,1.20577334,2602.8,2602.2,1.70544966]
[1646917642015,2.16714334,2602.8,2602.6,0.00138132]
[1646917642415,3.12858334,2602.8,2602.6,0.00138132]
[1646917642823,3.12858334,2602.8,2602.3,1.59841697]
[1646917643228,3.51358334,2602.8,2602.6,0.00138397]
[1646917643425,3.55603658,2602.8,2602.6,0.00138397]
[1646917643942,7.05603658,2602.8,2602.6,0.00138397]
[1646917644143,1.21610105,2602.4,2602.3,1.59841697]
[1646917644543,2.35026324,2602.8,2602.3,1.89841697]
[1646917644544,0.04245324,2602.8,2602.3,1.89841697]
[1646917644746,0.192,2603.0,2602.4,1.59841697]
[1646917644747,0.04771343,2603.0,2602.4,1.59841697]
[1646917645343,0.03545683,2602.9,2602.4,2.55960697]
[1646917645542,0.03545683,2602.9,2602.5,1.59841697]
[1646917645746,0.93695141,2602.8,2602.6,0.00350952]
[1646917645942,0.93695141,2602.8,2602.6,1.60192649]
[1646917646545,0.93695141,2602.8,2602.6,1.59841697]
[1646917646944,0.93695141,2602.8,2602.7,1.59841697]
[1646917647346,0.93695141,2602.8,2602.6,0.00337247]
[1646917647800,0.93695141,2602.8,2602.4,1.59841697]
[1646917647999,0.03545683,2602.9,2602.6,0.00337247]
[1646917648407,0.03545683,2602.9,2602.6,1.67613263]
[1646917648699,0.03545683,2602.9,2602.7,1.59841697]
[1646917649898,0.9993723,2603.1,2602.7,1.59841697]
[1646917650700,0.9993723,2603.1,2602.7,1.60159254]
[1646917651342,0.9993723,2603.1,2602.7,1.59841697]
[1646917651749,0.9993723,2603.1,2602.8,0.00319067]
[1646917652549,0.9993723,2603.1,2602.7,1.59841697]
[1646917652747,0.9993723,2603.1,2602.8,0.00319064]
[1646917652748,1.9606423,2603.1,2602.8,0.00319064]
[1646917653348,1.9607323,2603.1,2602.8,0.00319064]
[1646917653754,1.9607323,2603.1,2602.7,1.59841697]
[1646917653951,1.9607323,2603.1,2602.8,0.00321891]
[1646917654351,0.0381723,2603.1,2602.8,0.00321891]
[1646917654553,0.0381723,2603.1,2602.8,1.60163588]
[1646917654753,0.0381723,2603.1,2602.9,0.07985134]
[1646917655000,0.0381723,2603.1,2603.0,1.59841697]
[1646917655191,4.06687947,2603.7,2603.1,0.08877218]
[1646917655391,4.06687947,2603.7,2603.2,2.55290516]
[1646917655392,7.56687947,2603.7,2603.2,2.55290516]
[1646917655592,3.54017947,2603.7,2603.2,0.9609419]
[1646917655792,3.54017947,2603.7,2603.2,1.2609419]
[1646917656092,0.04017947,2603.7,2603.2,1.2609419]
[1646917656792,1.18766733,2603.3,2603.2,1.2609419]
[1646917658496,1.18766733,2603.3,2603.2,0.3]
[1646917659141,0.04017947,2603.7,2603.2,1.2610015]
[1646917659341,0.04017947,2603.7,2603.4,0.96098]
[1646917659740,0.04017947,2603.7,2603.4,1.26098]
[1646917660340,0.04017947,2603.7,2603.4,2.221938]
[1646917660542,1.0277872,2603.5,2603.4,2.221938]
[1646917661344,0.04017947,2603.7,2603.4,2.221938]
[1646917661547,1.00122947,2603.7,2603.4,0.3]
[1646917661743,1.00122947,2603.7,2603.2,0.3]
[1646917661744,3.54130903,2603.6,2603.2,0.3]
[1646917662342,3.54130903,2603.6,2602.9,0.3]
[1646917662599,1.52688409,2603.5,2602.9,0.3]
[1646917662801,0.97502665,2603.1,2602.9,0.3]
[1646917664805,0.97502665,2603.1,2602.4,2.36447]
[1646917664806,3.5,2603.0,2602.4,2.36447]
[1646917665001,3.5,2603.0,2602.7,0.00370924]
[1646917665002,5.47033662,2603.0,2602.7,0.00370924]
[1646917665300,1.97033662,2603.0,2602.7,0.00370924]
[1646917665501,5.47033662,2603.0,2602.7,0.00370924]
[1646917665700,0.96141,2602.9,2602.7,0.00370924]
[1646917665900,0.96141,2602.9,2602.4,0.192]
[1646917666100,1.14170284,2602.5,2602.4,0.192]
[1646917666341,5.47033662,2603.0,2602.7,0.56307274]
[1646917666542,0.89510045,2602.8,2602.7,0.56307274]
[1646917671494,4.39510045,2602.8,2602.7,0.56307274]
[1646917671695,1.08710045,2602.8,2602.7,0.56307274]
[1646917672290,0.89510045,2602.8,2602.7,0.56307274]
[1646917673842,0.89510045,2602.8,2602.6,0.01903485]
[1646917673843,62.885,2602.7,2602.6,0.01903485]
[1646917674041,63.44674157,2602.7,2602.6,0.01903485]
[1646917674241,64.44674157,2602.7,2602.6,0.01552849]
[1646917674444,65.16278281,2602.7,2602.6,0.01552849]
[1646917675243,64.44674157,2602.7,2602.6,0.02340248]
[1646917675442,2.02666298,2602.7,2602.6,0.02340248]
[1646917675647,1.46492141,2602.7,2602.6,0.02340248]
[1646917675846,0.46492141,2602.7,2602.6,0.02340248]
[1646917677696,0.07992141,2602.7,2602.6,0.02340248]
[1646917678295,0.07992141,2602.7,2602.6,1.5442364]
[1646917679800,0.07992141,2602.7,2602.6,1.8442364]
[1646917679995,0.07992141,2602.7,2602.6,1.82083392]
[1646917680195,0.07992141,2602.7,2602.6,2.20583392]
[1646917680396,0.04551789,2602.8,2602.6,2.75883392]
[1646917680599,0.04551789,2602.8,2602.7,1.52083392]
[1646917680898,0.04551789,2602.8,2602.7,2.07383392]
[1646917683157,0.04551789,2602.8,2602.7,1.52083392]
[1646917683357,0.12541428,2602.8,2602.7,1.52083392]
[1646917686790,0.12540768,2602.8,2602.7,1.52083392]
[1646917686990,1.32275248,2602.8,2602.7,1.52083392]
[1646917687597,1.32275248,2602.8,2602.7,1.49016517]
[1646917687797,1.32275248,2602.8,2602.6,1.92517667]
[1646917688001,0.10061067,2602.7,2602.6,0.00322667]
[1646917688200,0.14989099,2602.7,2602.6,0.00322667]
[1646917688400,0.14989099,2602.7,2602.6,1.49334747]
[1646917688839,0.14989099,2602.7,2602.6,1.4901208]
[1646917689043,0.10061067,2602.7,2602.6,1.49012775]
[1646917689240,0.10061067,2602.7,2602.6,1.79006354]
[1646917690045,0.10055199,2602.7,2602.6,1.79006354]
[1646917690241,0.10055167,2602.7,2602.6,3.71270354]
[1646917690442,0.10056721,2602.7,2602.6,3.71270354]
[1646917692601,0.10056721,2602.7,2602.6,3.41270354]
[1646917692798,0.10056721,2602.7,2602.6,3.71270354]
[1646917693398,0.10056721,2602.7,2602.6,3.41270354]
[1646917693597,0.10056721,2602.7,2602.6,1.92264]
[1646917693797,0.10056721,2602.7,2602.6,3.41255103]
[1646917693997,0.10056721,2602.7,2602.6,1.92264]
[1646917694399,0.10056721,2602.7,2602.6,3.4124638]
[1646917694799,0.10056721,2602.7,2602.6,1.4898238]
[1646917694999,0.10056721,2602.7,2602.5,1.49304283]
[1646917695204,0.10056721,2602.7,2602.6,0.03144928]
[1646917695399,0.10056721,2602.7,2602.6,1.52127308]
[1646917695598,0.10056721,2602.7,2602.6,1.52126197]
[1646917695799,0.10056721,2602.7,2602.6,0.03144928]
[1646917695999,0.10056721,2602.7,2602.6,1.52129715]
[1646917696243,0.10056721,2602.7,2602.6,1.52121648]
[1646917696445,0.10056721,2602.7,2602.6,0.03144928]
[1646917696645,0.10056721,2602.7,2602.6,1.52133684]
[1646917696845,0.10056721,2602.7,2602.6,1.52131618]
[1646917697049,0.04551789,2602.8,2602.6,5.32131618]
[1646917697245,1.85124124,2603.4,2602.8,0.03975183]
[1646917697446,0.10152882,2603.3,2602.9,1.4898669]
[1646917697850,0.10152882,2603.2,2602.9,1.4898669]
[1646917698047,0.10152882,2603.1,2602.9,1.4898669]
[1646917698249,0.10152882,2603.0,2602.9,2.83719875]
[1646917698649,0.10152882,2603.3,2602.9,2.83719875]
[1646917698949,0.04788284,2603.5,2603.0,1.4898669]
[1646917698950,0.10152882,2603.2,2603.0,1.4898669]
[1646917699251,1.67712124,2603.6,2603.0,1.4898669]
[1646917699252,0.10152882,2603.1,2603.0,1.4898669]
[1646917699449,0.10152882,2603.5,2603.0,5.61192906]
[1646917699649,0.10152882,2603.4,2603.1,2.53968575]
[1646917699848,1.3221,2603.9,2603.2,1.56571354]
[1646917699849,0.10152882,2603.3,2603.2,1.56571354]
[1646917700093,0.71604124,2603.7,2603.2,1.86571354]
[1646917700094,1.14335591,2603.4,2603.2,1.86571354]
[1646917700399,0.10151141,2603.3,2603.2,0.3]
[1646917700592,0.10151141,2603.3,2603.2,1.78884008]
[1646917700794,0.10151141,2603.3,2603.1,0.08652045]
[1646917700997,0.10151141,2603.3,2602.8,0.03975183]
[1646917701193,0.81755265,2603.3,2602.9,1.48618444]
[1646917701394,1.06283141,2603.2,2602.8,0.11081031]
[1646917701597,1.02757554,2603.1,2602.8,0.11081031]
[1646917701996,0.10151141,2603.0,2602.8,0.11081031]
[1646917702903,0.10151141,2603.0,2602.8,0.03975183]
[1646917703100,1.77885265,2603.0,2602.8,0.03975183]
[1646917703302,0.81755265,2602.9,2602.8,0.03975183]
[1646917703502,0.10151141,2602.9,2602.8,0.03975183]
[1646917704350,0.81698124,2602.9,2602.8,0.03975183]
[1646917704549,0.10151141,2602.9,2602.8,0.03975183]
[1646917706253,0.81698124,2602.9,2602.8,0.03975183]
[1646917707356,0.10151141,2602.9,2602.8,0.03975183]
[1646917707599,0.10151141,2602.9,2602.8,1.50576315]
[1646917709303,0.10151141,2602.9,2602.8,1.53550537]
[1646917711242,0.10151141,2602.9,2602.8,1.83550537]
[1646917711442,1.96066983,2603.4,2602.8,1.83550537]
[1646917711443,0.10151141,2603.3,2602.8,1.83550537]
[1646917711644,0.10151141,2603.3,2602.9,1.46601132]
[1646917711843,0.10151141,2603.2,2602.9,1.46601132]
[1646917712143,0.10151141,2603.1,2602.9,1.46601132]
[1646917712343,1.30193891,2603.0,2602.9,1.46601132]
[1646917712949,0.10151141,2603.0,2602.9,1.46601132]
[1646917713350,0.71546983,2603.4,2602.9,1.46601132]
[1646917713547,0.81698124,2603.3,2602.9,1.46601132]
[1646917713746,0.71546983,2603.3,2602.9,1.46601132]
[1646917714149,1.06131348,2603.0,2602.9,1.46601132]
[1646917714447,1.16282489,2603.0,2602.9,1.46601132]
[1646917714647,1.20749579,2603.0,2602.9,1.46601132]
[1646917716891,1.20749579,2603.0,2602.8,0.36949405]
[1646917717092,0.10151141,2602.9,2602.8,0.36949405]
[1646917717492,0.10151141,2602.9,2602.8,1.83541248]
[1646917717695,0.10151141,2602.9,2602.8,0.36949405]
[1646917717899,0.10151141,2602.9,2602.8,1.53548316]
[1646917718098,0.10151141,2602.9,2602.8,0.06949405]
[1646917718301,0.10151141,2602.9,2602.8,1.53551236]
[1646917718507,0.10151141,2602.9,2602.8,0.05630387]
[1646917718750,0.10151141,2602.9,2602.8,0.35630387]
[1646917719351,0.10151141,2602.9,2602.8,0.05630387]